bitfinex/quotes_BTCUSD_20210101
["timestamp","ask_amount","ask_price","bid_price","bid_amount"]
[1609537840336,0.64411737,29238.0,29237.0,3.73883855]
[1609537840538,0.62724287,29238.0,29237.0,5.43196205]
[1609537841335,0.43144287,29238.0,29237.0,7.28196205]
[1609537841539,0.43144287,29238.0,29237.0,6.34096205]
[1609537841738,0.43144287,29238.0,29237.0,8.51911205]
[1609537845762,0.43144287,29238.0,29237.0,7.51911205]
[1609537846160,0.43144287,29238.0,29237.0,7.47196205]
[1609537846913,0.43144287,29238.0,29237.0,7.46696205]
[1609537848547,0.43144287,29238.0,29237.0,8.51696205]
[1609537850649,0.43144287,29238.0,29237.0,10.66696205]
[1609537850851,0.2631,29250.0,29241.0,0.553875]
[1609537851160,0.2631,29250.0,29247.0,0.6767]
[1609537851355,0.2631,29250.0,29249.0,0.58742098]
[1609537851552,0.2631,29250.0,29249.0,1.7890391]
[1609537851851,0.2631,29250.0,29249.0,0.80554448]
[1609537852055,0.2631,29250.0,29249.0,0.88554448]
[1609537852664,0.2631,29250.0,29249.0,1.87369448]
[1609537852964,0.2631,29250.0,29249.0,0.88554448]
[1609537853969,0.00109563,29254.0,29249.0,0.88554448]
[1609537854171,0.00109563,29254.0,29253.0,2.663863]
[1609537854370,0.00109563,29254.0,29253.0,3.62422448]
[1609537855168,0.00109563,29254.0,29253.0,3.70422448]
[1609537855465,0.00109563,29254.0,29253.0,4.39272448]
[1609537855667,0.00109563,29254.0,29253.0,5.19772448]
[1609537855878,0.03565331,29260.0,29254.0,0.22355798]
[1609537856070,0.03565331,29260.0,29255.0,0.08]
[1609537856270,0.03565331,29260.0,29255.0,0.4769865]
[1609537856672,0.03565331,29260.0,29256.0,0.88085798]
[1609537856877,0.03565331,29260.0,29257.0,0.58742098]
[1609537857073,0.03565331,29260.0,29258.0,0.22355798]
[1609537857270,0.03565331,29260.0,29258.0,0.2481235]
[1609537857790,0.03565331,29260.0,29259.0,0.22355798]
[1609537858092,0.12111128,29264.0,29260.0,0.22355798]
[1609537858292,0.363863,29262.0,29261.0,0.19]
[1609537858491,0.363863,29262.0,29261.0,0.2231235]
[1609537859090,0.363863,29262.0,29261.0,0.9081235]
[1609537860394,0.363863,29262.0,29261.0,0.7181235]
[1609537860594,0.38996945,29262.0,29261.0,0.0331235]
[1609537860796,0.38996945,29262.0,29260.0,0.25668148]
[1609537861000,0.38996945,29262.0,29260.0,0.0331235]
[1609537861001,0.963863,29261.0,29260.0,0.0331235]
[1609537861309,1.153863,29261.0,29260.0,0.0331235]
[1609537861605,1.353863,29261.0,29258.0,0.0331235]
[1609537861843,0.8,29259.0,29252.0,0.454]
[1609537862045,0.363863,29251.0,29249.0,1.3877]
[1609537862247,0.02610645,29250.0,29249.0,1.3877]
[1609537862438,0.38996945,29250.0,29249.0,1.3877]
[1609537863875,0.38996945,29250.0,29249.0,1.48998006]
[1609537864073,0.90256946,29250.0,29249.0,1.48998006]
[1609537864573,0.92191469,29250.0,29249.0,1.48998006]
[1609537864874,1.19691469,29250.0,29249.0,1.3877]
[1609537865373,0.92191469,29250.0,29249.0,1.3877]
[1609537865775,1.12191469,29250.0,29249.0,1.3877]
[1609537865973,0.92191469,29250.0,29249.0,1.49013391]
[1609537867601,0.92191469,29250.0,29249.0,1.3877]
[1609537868600,0.92191469,29250.0,29249.0,1.48587233]
[1609537869302,0.99324639,29250.0,29249.0,1.48587233]
[1609537870600,0.99324639,29250.0,29249.0,1.3847]
[1609537871210,0.96713994,29250.0,29249.0,3.82662]
[1609537871409,0.96713994,29250.0,29249.0,4.39662]
[1609537871611,0.60327694,29250.0,29249.0,5.748633]
[1609537871811,0.53194524,29250.0,29249.0,5.85193873]
[1609537872011,0.01934523,29250.0,29249.0,5.85193873]
[1609537872406,0.01934523,29250.0,29249.0,4.86378873]
[1609537873330,0.01934523,29250.0,29249.0,2.560483]
[1609537873528,0.01434523,29250.0,29249.0,2.560483]
[1609537874131,0.01434523,29250.0,29249.0,2.640483]
[1609537876131,0.01434523,29250.0,29249.0,3.628633]
[1609537876332,0.01434523,29250.0,29249.0,2.640483]
[1609537877860,0.01434523,29250.0,29249.0,2.27662]
[1609537878062,0.37820823,29250.0,29249.0,1.4647]
[1609537878258,0.37820823,29250.0,29249.0,1.3847]
[1609537880994,1.11091155,29250.0,29249.0,1.3847]
[1609537882928,2.11091155,29250.0,29249.0,1.3847]
[1609537888851,1.11091155,29250.0,29249.0,1.3847]
[1609537889151,1.11091155,29250.0,29249.0,1.5897]
[1609537889350,1.11091155,29250.0,29249.0,1.3847]
[1609537889754,2.11091155,29250.0,29249.0,1.3847]
[1609537892210,2.21091155,29250.0,29249.0,1.3847]
[1609537893410,2.42446994,29250.0,29249.0,1.3847]
[1609537894256,2.18946994,29250.0,29249.0,1.3847]
[1609537894460,2.18946994,29250.0,29246.0,0.4691]
[1609537894662,1.51260001,29248.0,29246.0,0.4691]
[1609537894961,0.456796,29247.0,29246.0,0.4691]
[1609537895763,1.456796,29247.0,29246.0,0.4691]
[1609537896457,1.450796,29247.0,29246.0,0.4691]
[1609537896857,1.55779528,29247.0,29246.0,0.4691]
[1609537899170,1.48646243,29247.0,29246.0,0.4691]
[1609537899374,1.55351457,29247.0,29246.0,0.4691]
[1609537899571,1.450796,29247.0,29246.0,0.4691]
[1609537899774,1.356796,29247.0,29246.0,0.4691]
[1609537900174,1.666796,29247.0,29246.0,0.4691]
[1609537900474,1.456796,29247.0,29246.0,0.4691]
[1609537901173,1.46755777,29247.0,29246.0,0.4691]
[1609537902074,1.56950703,29247.0,29246.0,0.4691]
[1609537902279,1.46950703,29247.0,29246.0,0.4691]
[1609537902479,1.36755777,29247.0,29246.0,0.4691]
[1609537902898,1.36755777,29247.0,29246.0,0.54899355]
[1609537905803,1.36755777,29247.0,29246.0,0.54399355]
[1609537907743,0.36755777,29247.0,29246.0,0.54399355]
[1609537907947,0.01076177,29247.0,29246.0,1.4641]
[1609537908146,0.01076177,29247.0,29246.0,1.79899355]
[1609537908344,0.01076177,29247.0,29246.0,1.99899355]
[1609537908581,0.01076177,29247.0,29246.0,2.16284755]
[1609537909082,0.01076177,29247.0,29246.0,4.06284755]
[1609537909281,0.01076177,29247.0,29246.0,3.86284755]
[1609537910784,0.01076177,29247.0,29246.0,5.01284755]
[1609537911085,0.01076177,29247.0,29246.0,3.86284755]
[1609537911887,0.01076177,29247.0,29246.0,2.96284755]
[1609537912084,0.01076177,29247.0,29246.0,1.79899355]
[1609537912085,0.36755777,29247.0,29246.0,1.79899355]
[1609537912307,0.36755777,29247.0,29246.0,0.7191]
[1609537913206,1.36755777,29247.0,29246.0,0.7141]
[1609537914907,1.36755777,29247.0,29246.0,1.4641]
[1609537915705,1.36755777,29247.0,29246.0,0.7141]
[1609537916808,1.36755777,29247.0,29246.0,1.4641]
[1609537917510,1.01076177,29247.0,29246.0,1.4641]
[1609537917711,1.01076177,29247.0,29246.0,1.8141]
[1609537918881,1.36755777,29247.0,29246.0,1.8141]
[1609537919082,1.36755777,29247.0,29246.0,0.7141]
[1609537919394,0.01076177,29247.0,29246.0,1.30813755]
[1609537919692,0.01076177,29247.0,29246.0,8.62628755]
[1609537919910,0.01076177,29247.0,29246.0,8.65475567]
[1609537920108,0.00076177,29247.0,29246.0,8.65475567]
[1609537921211,0.00076177,29247.0,29246.0,1.41660567]
[1609537921410,0.00076177,29247.0,29246.0,1.23784755]
[1609537921717,0.00076177,29247.0,29246.0,2.15784755]
[1609537922367,0.00076177,29247.0,29246.0,2.077954]
[1609537922568,0.00076177,29247.0,29246.0,2.15784755]
[1609537922871,0.00076177,29247.0,29246.0,2.43784755]
[1609537923066,0.00076177,29247.0,29246.0,2.23784755]
[1609537924106,0.00076177,29247.0,29246.0,2.43784755]
[1609537924709,0.00076177,29247.0,29246.0,4.28784755]
[1609537925008,0.00076177,29247.0,29246.0,4.08784755]
[1609537925212,0.00076177,29247.0,29246.0,2.23784755]
[1609537925605,0.00076177,29247.0,29246.0,3.33784755]
[1609537925810,0.00076177,29247.0,29246.0,3.53784755]
[1609537926814,0.00076177,29247.0,29246.0,2.157954]
[1609537927013,0.01545945,29247.0,29246.0,1.077954]
[1609537927213,0.37225545,29247.0,29246.0,0.7141]
[1609537928339,0.54982306,29247.0,29246.0,0.4591]
[1609537928639,1.54982306,29247.0,29246.0,0.4591]
[1609537929041,1.87578306,29247.0,29243.0,0.6351]
[1609537929242,0.54324504,29246.0,29243.0,0.6351]
[1609537929453,2.39076361,29244.0,29240.0,0.6367]
[1609537929646,0.956796,29241.0,29240.0,0.6367]
[1609537929849,1.126796,29241.0,29240.0,0.6367]
[1609537930145,1.30436361,29241.0,29240.0,0.6367]
[1609537930434,1.44168361,29241.0,29240.0,0.6367]
[1609537930644,2.66609361,29241.0,29234.0,0.2885]
[1609537930842,0.2564,29238.0,29233.0,0.11947856]
[1609537931044,0.5128,29236.0,29233.0,0.11947856]
[1609537931241,0.46504104,29235.0,29233.0,0.11947856]
[1609537931444,0.356796,29235.0,29233.0,0.11947856]
[1609537931642,0.356796,29235.0,29234.0,0.155]
[1609537931843,0.356796,29235.0,29234.0,1.555]
[1609537932441,0.37236833,29235.0,29234.0,1.555]
[1609537932962,0.37236833,29235.0,29234.0,1.545]
[1609537934462,0.37236833,29235.0,29234.0,2.0181]
[1609537935467,0.37236833,29235.0,29234.0,2.0131]
[1609537936068,0.37236833,29235.0,29234.0,2.0081]
[1609537936807,0.36736833,29235.0,29234.0,0.6081]
[1609537937498,0.36736833,29235.0,29234.0,1.5581]
[1609537937900,0.36736833,29235.0,29234.0,0.6081]
[1609537938503,0.36736833,29235.0,29234.0,1.8581]
[1609537939332,0.36736833,29235.0,29234.0,0.6081]
[1609537941543,0.36736833,29235.0,29234.0,3.93799355]
[1609537941740,0.01557233,29235.0,29234.0,3.93799355]
[1609537942043,0.01557233,29235.0,29234.0,4.50196755]
[1609537942379,0.01557233,29235.0,29234.0,4.58196755]
[1609537942572,0.0356804,29236.0,29235.0,7.80415067]
[1609537942776,0.07135866,29241.0,29235.0,9.16812467]
[1609537942975,0.07135866,29241.0,29236.0,0.58753198]
[1609537943181,0.2564,29241.0,29237.0,0.50345153]
[1609537943378,0.2564,29241.0,29238.0,0.58753198]
[1609537943579,0.2564,29241.0,29240.0,0.22355798]
[1609537943876,0.2564,29241.0,29240.0,1.59366755]
[1609537944474,0.2564,29241.0,29240.0,1.87406755]
[1609537944974,0.2564,29241.0,29240.0,2.07406755]
[1609537945280,0.2564,29241.0,29240.0,1.51009355]
[1609537945473,0.608177,29241.0,29240.0,1.4302]
[1609537945675,0.608177,29241.0,29240.0,1.51009355]
[1609537945878,0.608177,29241.0,29240.0,1.4302]
[1609537946110,0.608177,29241.0,29240.0,1.51009355]
[1609537946680,0.708177,29241.0,29240.0,1.4302]
[1609537946882,0.608177,29241.0,29240.0,1.4302]
[1609537947079,0.608177,29241.0,29240.0,1.51009355]
[1609537947279,0.608177,29241.0,29240.0,1.50009355]
[1609537947476,0.608177,29241.0,29240.0,2.80009355]
[1609537948088,0.2564,29241.0,29240.0,2.80009355]
[1609537948490,0.2564,29241.0,29240.0,3.16406755]
[1609537948692,0.29207218,29241.0,29240.0,3.16406755]
[1609537949287,0.30283642,29241.0,29240.0,3.16406755]
[1609537950594,0.30283642,29241.0,29240.0,1.784174]
[1609537950991,0.37418157,29241.0,29240.0,1.784174]
[1609537951193,0.37418157,29241.0,29240.0,1.4202]
[1609537952234,0.72595857,29241.0,29240.0,1.4202]
[1609537952435,0.72595857,29241.0,29240.0,2.3702]
[1609537953035,0.72595857,29241.0,29240.0,1.4202]
[1609537953239,1.00352618,29241.0,29240.0,0.7354]
[1609537953442,1.00352618,29241.0,29240.0,0.4804]
[1609537953670,1.12441618,29241.0,29240.0,0.4804]
[1609537953873,1.36941618,29241.0,29240.0,0.4804]
[1609537954066,1.29807103,29241.0,29240.0,0.4804]
[1609537954368,1.89807103,29241.0,29240.0,0.4804]
[1609537954969,1.29807103,29241.0,29240.0,0.4804]
[1609537955169,1.17718103,29241.0,29240.0,0.4804]
[1609537955367,1.17718103,29241.0,29240.0,0.44573562]
[1609537956372,1.17718103,29241.0,29240.0,0.54876535]
[1609537956871,1.17718103,29241.0,29240.0,0.44073562]
[1609537957796,1.17718103,29241.0,29240.0,0.54218533]
[1609537958897,1.19503459,29241.0,29240.0,0.44073562]
[1609537959094,1.26644883,29241.0,29240.0,0.44073562]
[1609537959898,1.26644883,29241.0,29240.0,0.54365249]
[1609537960100,1.08888122,29241.0,29240.0,0.54365249]
[1609537960802,1.08888122,29241.0,29240.0,0.44073562]
[1609537961700,0.84388122,29241.0,29240.0,0.44073562]
[1609537962004,0.84388122,29241.0,29240.0,0.54301638]
[1609537962198,1.02144883,29241.0,29240.0,0.54301638]
[1609537962401,1.02144883,29241.0,29240.0,0.44073562]
[1609537962602,1.01644883,29241.0,29240.0,0.44073562]
[1609537963224,0.84388122,29241.0,29240.0,0.43192623]
[1609537963425,0.99388122,29241.0,29240.0,0.43192623]
[1609537963626,0.84388122,29241.0,29240.0,0.43192623]
[1609537964029,0.74388122,29241.0,29240.0,0.43192623]
[1609537965235,0.81523781,29241.0,29240.0,0.43192623]
[1609537965433,0.81523781,29241.0,29240.0,0.59192623]
[1609537967368,0.74388122,29241.0,29240.0,0.59192623]
[1609537967968,0.67246698,29241.0,29240.0,0.59192623]
[1609537970187,0.6367948,29241.0,29240.0,0.59192623]
[1609537970789,0.61894124,29241.0,29240.0,0.59192623]
[1609537971493,0.71894124,29241.0,29240.0,0.59192623]
[1609537972501,0.89150885,29241.0,29240.0,0.43192623]
[1609537974623,1.16150885,29241.0,29240.0,0.43192623]
[1609537975328,0.98894124,29241.0,29240.0,0.43192623]
[1609537976030,1.16150885,29241.0,29239.0,0.6667]
[1609537976229,1.35502204,29240.0,29239.0,0.6667]
[1609537976435,0.646777,29240.0,29239.0,0.6667]
[1609537976732,0.646777,29240.0,29239.0,0.65587937]
[1609537977129,0.68245525,29240.0,29239.0,0.65587937]
[1609537978056,0.68245525,29240.0,29239.0,0.62750376]
[1609537978257,0.38745525,29240.0,29239.0,0.62750376]
[1609537982903,0.48745525,29240.0,29239.0,0.62750376]
[1609537983405,0.81502286,29240.0,29239.0,0.62750376]
[1609537983608,0.81502286,29240.0,29239.0,0.7247413]
[1609537983830,0.88643966,29240.0,29239.0,0.42933034]
[1609537984028,0.88643966,29240.0,29239.0,0.20989842]
[1609537986431,0.71387205,29240.0,29239.0,0.20989842]
[1609537986634,0.71387205,29240.0,29239.0,0.20489842]
[1609537986834,0.71387205,29240.0,29239.0,0.30879353]
[1609537987031,0.71387205,29240.0,29239.0,0.20489842]
[1609537987954,0.71387205,29240.0,29239.0,0.30862937]
[1609537988558,0.73172637,29240.0,29239.0,0.30862937]
[1609537989257,0.73172637,29240.0,29239.0,0.20489842]
[1609537989755,0.63172637,29240.0,29239.0,0.20489842]
[1609537989958,0.70308695,29240.0,29239.0,0.20489842]
[1609537990359,0.70308695,29240.0,29239.0,0.30271621]
[1609537990659,0.70308695,29240.0,29239.0,0.28737247]
[1609537990861,0.70308695,29240.0,29239.0,0.18455468]
[1609537991259,0.56030957,29240.0,29239.0,0.18455468]
[1609537991859,0.56030957,29240.0,29239.0,0.28590526]
[1609537993387,0.54245525,29240.0,29239.0,0.18455468]
[1609537994186,0.54245525,29240.0,29239.0,0.16868467]
[1609537994388,0.54245525,29240.0,29239.0,0.27021993]
[1609537995288,0.66145972,29240.0,29239.0,0.27021993]
[1609537995492,0.50645972,29240.0,29239.0,0.27021993]
[1609537996392,0.50645972,29240.0,29239.0,0.16868467]
[1609537996595,0.10824504,29239.0,29235.0,0.00415067]
[1609537996900,0.427777,29238.0,29235.0,0.00415067]
[1609537997049,0.564577,29238.0,29235.0,0.00415067]
[1609537997258,0.5128,29237.0,29235.0,0.00415067]
[1609537997455,0.43602204,29236.0,29235.0,0.10738273]
[1609537997649,0.57902982,29236.0,29235.0,0.10738273]
[1609537998053,0.47078478,29236.0,29235.0,0.00415067]
[1609537998556,0.96402982,29236.0,29235.0,0.00415067]
[1609537998988,0.99971325,29236.0,29235.0,0.00415067]
[1609537999287,0.99971325,29236.0,29235.0,0.10666442]
[1609537999492,0.71471325,29236.0,29235.0,0.00415067]
[1609538000889,0.73325884,29236.0,29235.0,0.00415067]
[1609538001390,0.5250138,29236.0,29235.0,0.00415067]
[1609538002291,0.38200602,29236.0,29235.0,0.00415067]
[1609538002720,0.49025106,29236.0,29235.0,0.00415067]
[1609538002924,0.38200602,29236.0,29234.0,0.4538]
[1609538003124,0.49025106,29236.0,29235.0,0.185]
[1609538003320,0.63325884,29236.0,29235.0,0.185]
[1609538003623,0.63325884,29236.0,29235.0,0.14764843]
[1609538003920,0.80582645,29236.0,29235.0,0.14764843]
[1609538004224,0.5250138,29236.0,29235.0,0.14764843]
[1609538004820,0.63325884,29236.0,29235.0,0.14764843]
[1609538005023,0.73325884,29236.0,29235.0,0.14764843]
[1609538005226,0.63325884,29236.0,29235.0,0.14764843]
[1609538005424,0.49025106,29236.0,29235.0,0.14764843]
[1609538005624,0.59025106,29236.0,29235.0,0.14764843]
[1609538006524,0.76281867,29236.0,29235.0,0.14764843]
[1609538006726,0.59025106,29236.0,29235.0,0.14764843]
[1609538006924,0.48200602,29236.0,29235.0,0.14764843]
[1609538007124,0.6250138,29236.0,29235.0,0.79394843]
[1609538007724,0.6250138,29236.0,29235.0,0.71013748]
[1609538007923,0.73325884,29236.0,29235.0,0.58576608]
[1609538008442,0.73325884,29236.0,29235.0,0.54356106]
[1609538008842,0.63325884,29236.0,29235.0,0.54356106]
[1609538009046,0.5250138,29236.0,29235.0,0.54356106]
[1609538009445,0.49025106,29236.0,29235.0,0.54356106]
[1609538009850,0.49025106,29236.0,29235.0,2.04356106]
[1609538010340,0.38200602,29236.0,29235.0,2.04356106]
[1609538011042,0.05422902,29236.0,29235.0,2.04356106]
[1609538011244,0.05422902,29236.0,29235.0,2.40751106]
[1609538012551,0.05422902,29236.0,29235.0,2.04356106]
[1609538013446,0.05422902,29236.0,29235.0,2.40751106]
[1609538015297,0.01854559,29236.0,29235.0,2.40751106]
[1609538015593,0.01854559,29236.0,29235.0,2.30755851]
[1609538015797,0.01854559,29236.0,29235.0,3.32456395]
[1609538016002,0.01854559,29236.0,29235.0,3.60456395]
[1609538016401,0.01854559,29236.0,29235.0,3.63303207]
[1609538016597,0.01854559,29236.0,29235.0,9.38303207]
[1609538017000,0.02024808,29236.0,29235.0,9.38303207]
[1609538018039,0.02024808,29236.0,29235.0,10.06643207]
[1609538018342,0.02024808,29236.0,29235.0,10.28999005]
[1609538018530,0.02024808,29236.0,29235.0,10.06643207]
[1609538023265,0.4026621,29247.0,29237.0,0.22355798]
[1609538023468,0.4026621,29247.0,29239.0,0.36395]
[1609538023667,0.3633121,29247.0,29239.0,0.46498337]
[1609538023863,0.3633121,29247.0,29240.0,0.43]
[1609538024064,0.3633121,29247.0,29242.0,0.6936]
[1609538024365,0.327777,29246.0,29242.0,0.6936]
[1609538025061,0.327777,29246.0,29243.0,0.4851]
[1609538025458,0.327777,29246.0,29243.0,0.45281942]
[1609538025663,0.327777,29246.0,29244.0,0.225]
[1609538025961,0.327777,29246.0,29244.0,0.37222261]
[1609538026162,0.327777,29246.0,29244.0,0.06949101]
[1609538026360,0.327777,29246.0,29244.0,0.06231002]
[1609538026562,0.01076271,29245.0,29244.0,0.06231002]
[1609538026937,0.3633121,29247.0,29245.0,0.09027066]
[1609538027098,0.327777,29246.0,29245.0,0.09027066]
[1609538027299,0.327777,29246.0,29245.0,0.08827066]
[1609538027504,0.327777,29246.0,29245.0,2.18827066]
[1609538027802,0.327777,29249.0,29246.0,0.22355798]
[1609538028201,0.76837082,29250.0,29245.0,2.76066265]
[1609538028393,0.327777,29249.0,29245.0,2.76066265]
[1609538028595,0.327777,29249.0,29246.0,0.43]
[1609538028836,0.39910985,29249.0,29247.0,0.485]
[1609538029236,0.39910985,29249.0,29246.0,0.13607]
[1609538029833,0.39910985,29249.0,29246.0,0.23813488]
[1609538030436,0.327777,29249.0,29246.0,0.23813488]
[1609538030634,0.327777,29249.0,29247.0,0.37]
[1609538031440,0.02010645,29248.0,29247.0,0.37]
[1609538031747,0.34788345,29248.0,29245.0,0.08827066]
[1609538032564,0.34788345,29248.0,29245.0,0.18954915]
[1609538032762,0.86048346,29248.0,29245.0,0.18954915]
[1609538032960,0.145,29247.0,29245.0,0.18954915]
[1609538033163,0.327777,29246.0,29245.0,0.18954915]
[1609538033960,0.327777,29246.0,29245.0,0.08827066]
[1609538034561,0.327777,29246.0,29245.0,0.08727066]
[1609538035063,0.327777,29246.0,29245.0,0.18863122]
[1609538035965,0.327777,29246.0,29245.0,0.08727066]
[1609538036262,0.39911506,29246.0,29245.0,0.26227066]
[1609538036563,0.327777,29246.0,29245.0,0.26227066]
[1609538036962,0.327777,29246.0,29245.0,0.3648109]
[1609538037564,0.327777,29246.0,29245.0,0.26227066]
[1609538039093,0.80410175,29250.0,29246.0,5.93750798]
[1609538039094,1.24520333,29250.0,29246.0,5.93750798]
[1609538039290,1.41646332,29250.0,29247.0,0.98815]
[1609538039492,1.41646332,29250.0,29248.0,1.90076544]
[1609538039691,1.41646332,29250.0,29249.0,7.1041261]
[1609538039893,1.41646332,29250.0,29249.0,6.8521]
[1609538040291,1.41646332,29250.0,29249.0,7.8521]
[1609538041389,1.41646332,29250.0,29249.0,8.62125798]
[1609538041692,1.41646332,29250.0,29249.0,9.0469]
[1609538043024,1.41646332,29250.0,29249.0,9.27045798]
[1609538043229,1.41646332,29250.0,29249.0,9.0469]
[1609538043427,1.41646332,29250.0,29249.0,9.19045798]
[1609538045173,1.39146332,29250.0,29249.0,3.69045798]
[1609538045373,1.39146332,29250.0,29249.0,3.4669]
[1609538045574,1.39146332,29250.0,29249.0,3.5469]
[1609538046478,1.39146332,29250.0,29249.0,2.55875]
[1609538047787,1.39146332,29250.0,29249.0,2.47875]
[1609538048391,1.39146332,29250.0,29249.0,1.47875]
[1609538051394,1.39146332,29250.0,29249.0,1.80875]
[1609538054226,1.39146332,29250.0,29249.0,1.4448]
[1609538054528,1.39146332,29250.0,29249.0,1.4398]
[1609538054733,1.81924032,29250.0,29249.0,1.4398]
[1609538054931,1.81924032,29250.0,29249.0,0.4606]
[1609538055148,2.41924032,29250.0,29249.0,0.4606]
[1609538055342,0.927777,29248.0,29247.0,0.08727066]
[1609538055533,1.10034461,29248.0,29247.0,0.08727066]
[1609538055733,1.78910461,29248.0,29238.0,0.2803]
[1609538055938,1.78910461,29248.0,29238.0,0.9203]
[1609538055939,0.5127,29243.0,29238.0,0.9203]
[1609538056237,0.45612849,29242.0,29238.0,0.9203]
[1609538056431,0.31824504,29241.0,29238.0,0.9203]
[1609538056636,0.327777,29240.0,29238.0,0.9203]
[1609538057088,0.2564,29241.0,29239.0,0.36395]
[1609538057294,0.327777,29240.0,29238.0,0.9203]
[1609538057488,0.34240151,29240.0,29238.0,0.9203]
[1609538057688,0.01462451,29240.0,29238.0,0.9203]
[1609538057887,0.01462451,29240.0,29239.0,0.23]
[1609538058488,0.45064655,29240.0,29239.0,0.23]
[1609538058687,0.45064655,29240.0,29238.0,0.9203]
[1609538059323,0.34240151,29240.0,29238.0,0.9203]
[1609538059521,0.01462451,29240.0,29238.0,0.9203]
[1609538060320,0.01462451,29240.0,29239.0,0.23]
[1609538060519,0.34240151,29240.0,29239.0,0.23]
[1609538060828,0.37807697,29240.0,29238.0,0.9203]
[1609538061023,0.05029997,29240.0,29238.0,0.9203]
[1609538061221,0.05029997,29240.0,29239.0,0.36395]
[1609538061422,0.05029997,29240.0,29239.0,0.64895]
[1609538063048,0.05029997,29240.0,29239.0,0.285]
[1609538064846,0.05029997,29240.0,29239.0,0.7379]
[1609538065747,0.05029997,29240.0,29239.0,1.10185]
[1609538067064,0.05029997,29240.0,29239.0,3.66386]
[1609538067255,0.01462451,29240.0,29239.0,3.66386]
[1609538069109,0.01462451,29240.0,29239.0,4.65201]
[1609538069608,0.01462451,29240.0,29239.0,3.66386]
[1609538069808,0.01462451,29240.0,29239.0,4.65201]
[1609538070507,0.01462451,29240.0,29239.0,3.66386]
[1609538070711,0.01462451,29240.0,29239.0,4.65201]
[1609538071410,0.01462451,29240.0,29239.0,4.73190355]
[1609538071612,0.01462451,29240.0,29239.0,3.74375355]
[1609538072267,0.01462451,29240.0,29239.0,4.73190355]
[1609538072568,0.01462451,29240.0,29239.0,4.93190355]
[1609538073066,0.01462451,29240.0,29239.0,3.66386]
[1609538075171,0.01462451,29240.0,29239.0,1.31386]
[1609538075566,0.01462451,29240.0,29239.0,1.10185]
[1609538080886,0.05029706,29240.0,29239.0,1.10185]
[1609538083508,0.05029706,29240.0,29239.0,0.81685]
[1609538084111,0.05029706,29240.0,29239.0,0.80593368]
[1609538085319,0.05029706,29240.0,29239.0,0.80093368]
[1609538085513,0.05029706,29240.0,29239.0,1.15593368]
[1609538085815,0.05029706,29240.0,29239.0,2.60593368]
[1609538086415,0.05029706,29240.0,29239.0,2.88582723]
[1609538086913,0.05029706,29240.0,29239.0,2.80593368]
[1609538087157,0.05029706,29240.0,29239.0,2.60593368]
[1609538087558,0.05029706,29240.0,29239.0,2.80593368]
[1609538087754,0.01462451,29240.0,29239.0,2.80593368]
[1609538087955,0.01462451,29240.0,29239.0,4.40593368]
[1609538088657,0.01462451,29240.0,29239.0,5.39408368]
[1609538089004,0.01462451,29240.0,29239.0,7.87408368]
[1609538089199,0.01462451,29240.0,29239.0,7.9025518]
[1609538089894,0.01462451,29240.0,29239.0,9.4525518]
[1609538090100,0.01462451,29240.0,29239.0,7.9025518]
[1609538091700,0.01462451,29240.0,29239.0,8.12610978]
[1609538091899,0.01462451,29240.0,29239.0,7.9025518]
[1609538092398,0.01462451,29240.0,29239.0,8.12610978]
[1609538092910,0.01462451,29240.0,29239.0,8.12729378]
[1609538093112,0.01462451,29240.0,29239.0,7.9037358]
[1609538093416,0.01462451,29240.0,29239.0,8.08466723]
[1609538093615,0.01462451,29240.0,29239.0,5.46110925]
[1609538093818,0.68361714,29248.0,29241.0,0.22355798]
[1609538094020,0.68361714,29248.0,29243.0,0.22355798]
[1609538094318,0.68361714,29248.0,29244.0,0.36395]
[1609538094616,0.68361714,29248.0,29246.0,0.657]
[1609538094814,0.68361714,29248.0,29247.0,0.265]
[1609538095013,0.68361714,29248.0,29247.0,0.79254]
[1609538099248,0.68361714,29248.0,29247.0,0.265]
[1609538099249,1.11139414,29248.0,29247.0,0.265]
[1609538099447,1.12215586,29248.0,29247.0,0.4804]
[1609538101549,1.12215586,29248.0,29247.0,0.7273]
[1609538102987,1.12215586,29248.0,29247.0,0.4804]
[1609538102988,1.2304009,29248.0,29247.0,0.4804]
[1609538103187,1.6304009,29248.0,29247.0,0.4804]
[1609538104536,1.69679933,29248.0,29247.0,0.4804]
[1609538104734,1.71464872,29248.0,29247.0,0.4804]
[1609538106536,1.91464872,29248.0,29247.0,0.4804]
[1609538109952,1.71464872,29248.0,29247.0,0.4804]
[1609538110356,1.6136375,29248.0,29247.0,0.4804]
[1609538111452,1.92188254,29248.0,29247.0,0.4804]
[1609538111652,1.72188254,29248.0,29247.0,0.4804]
[1609538112257,1.62188254,29248.0,29247.0,0.4804]
[1609538113053,1.22688254,29248.0,29247.0,0.4804]
[1609538113259,1.15548411,29248.0,29247.0,0.4804]
[1609538113478,1.04723907,29248.0,29247.0,0.4804]
[1609538114275,1.02938968,29248.0,29247.0,0.4804]
[1609538117732,1.13763472,29248.0,29247.0,0.4804]
[1609538118124,1.13763472,29248.0,29247.0,0.46999196]
[1609538118327,1.23763472,29248.0,29247.0,0.46999196]
[1609538118528,1.54263472,29248.0,29247.0,0.46999196]
[1609538118726,1.64263472,29248.0,29247.0,0.46999196]
[1609538121174,1.13763472,29248.0,29247.0,0.46999196]
[1609538122369,1.02938968,29248.0,29247.0,0.46999196]
[1609538122794,1.12938968,29248.0,29247.0,0.46999196]
[1609538123894,1.23763472,29248.0,29247.0,0.46999196]
[1609538124095,1.23763472,29248.0,29247.0,0.62499196]
[1609538124295,1.12938968,29248.0,29247.0,0.60732356]
[1609538124494,1.12938968,29248.0,29247.0,0.45232356]
[1609538124696,1.14787464,29248.0,29247.0,0.45232356]
[1609538124895,1.13008174,29248.0,29247.0,0.45232356]
[1609538125098,1.02307677,29248.0,29247.0,0.45232356]
[1609538125694,1.16307677,29248.0,29247.0,0.45232356]
[1609538125998,1.27132181,29248.0,29247.0,0.45232356]
[1609538128299,1.47132181,29248.0,29247.0,0.45232356]
[1609538129322,1.47132181,29248.0,29247.0,0.41849034]
[1609538129522,1.47336879,29248.0,29247.0,0.41849034]
[1609538130927,0.10824504,29247.0,29245.0,0.427763]
[1609538131136,1.71849387,29246.0,29245.0,0.427763]
[1609538131333,3.17404314,29246.0,29245.0,0.427763]
[1609538131524,3.17404314,29246.0,29245.0,0.35881]
[1609538131827,2.98017404,29246.0,29245.0,0.35881]
[1609538132264,2.97813062,29246.0,29245.0,0.35881]
[1609538132464,2.9801742,29246.0,29245.0,0.35881]
[1609538132761,3.0149062,29246.0,29245.0,0.35881]